bitfinex-derivatives/quotes_BTCF0:USTF0_20240913
["timestamp","ask_amount","ask_price","bid_price","bid_amount"]
[1726217389718,0.46739507,58072.0,58071.0,0.21451258]
[1726217390016,0.3608,58072.0,58071.0,0.21551258]
[1726217390222,0.3608,58072.0,58071.0,0.30160958]
[1726217390420,0.001,58078.0,58071.0,1.39888871]
[1726217390619,0.004,58082.0,58081.0,0.086082]
[1726217390814,0.086078,58084.0,58083.0,0.086079]
[1726217391014,0.086078,58084.0,58083.0,0.21449458]
[1726217391217,0.4077,58086.0,58085.0,0.086076]
[1726217392726,0.5277,58086.0,58085.0,0.087076]
[1726217392919,0.5486615,58086.0,58085.0,0.087076]
[1726217393127,0.6347355,58086.0,58085.0,0.087076]
[1726217393426,0.6347355,58086.0,58085.0,0.001]
[1726217393618,0.6347355,58086.0,58085.0,0.002]
[1726217397219,0.2739355,58086.0,58085.0,0.002]
[1726217397416,0.6347355,58086.0,58085.0,0.002]
[1726217398730,0.086076,58085.0,58083.0,0.06264238]
[1726217398927,0.15672922,58084.0,58083.0,0.06264238]
[1726217399529,0.15672922,58084.0,58080.0,0.086083]
[1726217399830,0.12,58081.0,58080.0,0.086083]
[1726217400028,0.27672922,58081.0,58080.0,0.086083]
[1726217401327,0.36281122,58081.0,58080.0,0.086083]
[1726217402130,0.36481122,58081.0,58080.0,0.087083]
[1726217402516,0.36481122,58081.0,58080.0,0.088083]
[1726217402920,0.36481122,58081.0,58080.0,0.087083]
[1726217403130,0.36681122,58081.0,58080.0,0.088083]
[1726217403632,0.45289322,58081.0,58080.0,0.002]
[1726217403927,0.45289322,58081.0,58080.0,0.00145587]
[1726217404633,0.086092,58075.0,58072.0,0.06951913]
[1726217404831,0.27672922,58074.0,58073.0,0.086093]
[1726217405932,0.15672922,58074.0,58073.0,0.086093]
[1726217406127,0.15772922,58074.0,58073.0,0.087093]
[1726217406724,0.001,58074.0,58073.0,0.087093]
[1726217406931,0.001,58074.0,58073.0,0.293187]
[1726217408335,0.003,58074.0,58073.0,0.294187]
[1726217408734,0.003,58074.0,58073.0,0.380281]
[1726217410737,0.003,58074.0,58073.0,0.260281]
[1726217410930,0.003,58074.0,58073.0,0.380281]
[1726217411427,0.003,58074.0,58073.0,0.43186009]
[1726217413138,0.004,58083.0,58082.0,0.25824]
[1726217413338,0.0469,58086.0,58085.0,0.086076]
[1726217413741,0.14188024,58086.0,58085.0,0.086076]
[1726217414144,0.14188024,58086.0,58085.0,0.172152]
[1726217414734,0.09498024,58086.0,58085.0,0.172152]
[1726217415043,0.09698024,58086.0,58085.0,0.173152]
[1726217415936,0.09798024,58086.0,58085.0,0.174152]
[1726217416137,0.09798024,58086.0,58085.0,0.260228]
[1726217416841,0.09798024,58086.0,58085.0,0.28110342]
[1726217417144,0.09797856,58086.0,58085.0,0.28110342]
[1726217419040,0.09797856,58086.0,58085.0,0.32930342]
[1726217420649,0.09797856,58086.0,58085.0,0.308428]
[1726217420948,0.09797856,58086.0,58085.0,0.260228]
[1726217421744,0.003,58086.0,58085.0,0.260228]
[1726217423449,0.003,58086.0,58085.0,0.174152]
[1726217423652,0.123,58086.0,58085.0,0.088076]
[1726217424043,0.123,58086.0,58085.0,0.174152]
[1726217424549,0.123,58086.0,58085.0,0.088076]
[1726217428054,0.003,58086.0,58085.0,0.088076]
[1726217428744,0.04515049,58086.0,58085.0,0.088076]
[1726217429050,0.09798327,58086.0,58085.0,0.088076]
[1726217433448,0.28694697,58086.0,58085.0,0.088076]
[1726217434847,0.09798327,58086.0,58085.0,0.088076]
[1726217435456,0.23421744,58086.0,58085.0,0.088076]
[1726217435762,0.28705022,58086.0,58085.0,0.088076]
[1726217435946,0.09798327,58086.0,58085.0,0.088076]
[1726217436551,0.09798324,58086.0,58085.0,0.088076]
[1726217436755,0.003,58086.0,58085.0,0.15684812]
[1726217437059,0.003,58086.0,58085.0,0.088076]
[1726217438154,0.001,58086.0,58085.0,0.087076]
[1726217438348,0.001,58086.0,58085.0,0.088076]
[1726217438852,0.0481,58087.0,58086.0,0.086074]
[1726217440052,0.0491,58087.0,58086.0,0.087074]
[1726217441154,0.0491,58087.0,58086.0,0.088074]
[1726217443754,0.14408133,58087.0,58086.0,0.088074]
[1726217447667,0.0491,58087.0,58086.0,0.088074]
[1726217448168,0.14408109,58087.0,58086.0,0.088074]
[1726217451673,0.0491,58087.0,58086.0,0.088074]
[1726217455870,0.0491,58087.0,58086.0,0.36809781]
[1726217459477,0.0491,58087.0,58086.0,0.088074]
[1726217462779,0.135173,58087.0,58086.0,0.088074]
[1726217462972,0.221246,58087.0,58086.0,0.05366587]
[1726217463172,0.270446,58087.0,58086.0,0.002]
[1726217466485,0.36543393,58087.0,58086.0,0.002]
[1726217466782,0.42717165,58087.0,58086.0,0.002]
[1726217472675,0.51324465,58087.0,58086.0,0.002]
[1726217473487,0.87404465,58087.0,58086.0,0.002]
[1726217474592,0.717319,58087.0,58086.0,0.002]
[1726217477883,0.172164,58081.0,58080.0,0.05166587]
[1726217478085,0.172164,58081.0,58076.0,0.15897341]
[1726217478086,0.172166,58080.0,58079.0,0.05166587]
[1726217478296,0.086086,58078.0,58077.0,0.05166587]
[1726217478483,0.086088,58077.0,58073.0,0.05166587]
[1726217478687,0.086088,58077.0,58064.0,0.10520812]
[1726217478688,0.206092,58074.0,58072.0,0.05166587]
[1726217478894,0.4808,58073.0,58070.0,0.05166587]
[1726217479092,0.12,58071.0,58070.0,0.05166587]
[1726217479298,0.12,58071.0,58069.0,0.05166587]
[1726217479299,0.086098,58070.0,58069.0,0.05166587]
[1726217480295,0.0861,58069.0,58067.0,0.086102]
[1726217480597,0.4808,58071.0,58067.0,0.13776787]
[1726217480598,0.206101,58068.0,58067.0,0.13776787]
[1726217480807,0.206101,58068.0,58067.0,0.086102]
[1726217481092,0.206101,58068.0,58067.0,0.13776787]
[1726217481297,0.206101,58068.0,58067.0,0.086102]
[1726217481694,0.43084327,58068.0,58067.0,0.086102]
[1726217481887,0.47300649,58068.0,58067.0,0.086102]
[1726217482395,0.30111295,58068.0,58067.0,0.086102]
[1726217482591,0.30211295,58068.0,58067.0,0.086102]
[1726217482795,0.30411295,58068.0,58067.0,0.086102]
[1726217483797,0.086104,58067.0,58061.0,0.008]
[1726217483987,0.206109,58063.0,58060.0,0.01931951]
[1726217484300,0.206109,58063.0,58057.0,0.0457]
[1726217484301,0.24941604,58062.0,58059.0,0.086114]
[1726217484493,0.086115,58059.0,58055.0,0.3608]
[1726217484707,0.13720076,58057.0,58056.0,0.086119]
[1726217484999,0.15440227,58059.0,58058.0,0.086116]
[1726217485199,0.04216839,58059.0,58058.0,0.086116]
[1726217486387,0.04316839,58059.0,58058.0,0.086116]
[1726217487299,0.0431685,58059.0,58058.0,0.086116]
[1726217489405,0.18018623,58059.0,58058.0,0.086116]
[1726217489598,0.13701773,58059.0,58058.0,0.086116]
[1726217490997,0.22313173,58059.0,58058.0,0.086116]
[1726217491196,0.22313173,58059.0,58053.0,0.13964553]
[1726217491197,0.08612,58055.0,58054.0,0.086121]
[1726217491400,0.08612,58055.0,58054.0,0.15473348]
[1726217491598,0.08612,58055.0,58054.0,0.086121]
[1726217493099,0.206117,58057.0,58056.0,0.086119]
[1726217493307,0.206117,58057.0,58056.0,0.13756256]
[1726217494808,0.206117,58057.0,58056.0,0.13956256]
[1726217495708,0.566917,58057.0,58056.0,0.13956256]
[1726217496305,0.566917,58057.0,58056.0,0.088119]
[1726217497210,0.566917,58057.0,58056.0,0.002]
[1726217501907,0.206117,58057.0,58056.0,0.002]
[1726217502113,0.566917,58057.0,58056.0,0.002]
[1726217502617,0.206117,58057.0,58056.0,0.002]
[1726217502810,0.653034,58057.0,58056.0,0.002]
[1726217504314,0.739151,58057.0,58056.0,0.002]
[1726217504911,0.785851,58057.0,58056.0,0.002]
[1726217508113,0.785851,58057.0,58056.0,0.05349516]
[1726217509112,0.785851,58057.0,58056.0,0.002]
[1726217511316,1.902571,58057.0,58056.0,0.002]
[1726217514215,1.302571,58057.0,58056.0,0.002]
[1726217514823,0.785851,58057.0,58056.0,0.002]
[1726217515020,1.302571,58057.0,58056.0,0.002]
[1726217516421,0.941771,58057.0,58056.0,0.002]
[1726217516627,1.302571,58057.0,58056.0,0.002]
[1726217517923,0.785851,58057.0,58056.0,0.002]
[1726217518520,1.302571,58057.0,58056.0,0.002]
[1726217518723,0.665851,58057.0,58056.0,0.002]
[1726217518925,0.785851,58057.0,58056.0,0.002]
[1726217521331,0.739151,58057.0,58056.0,0.002]
[1726217523335,0.378351,58057.0,58056.0,0.002]
[1726217523534,0.739151,58057.0,58056.0,0.002]
[1726217524335,0.378351,58057.0,58056.0,0.002]
[1726217524533,0.739151,58057.0,58056.0,0.002]
[1726217526228,0.89596324,58057.0,58056.0,0.002]
[1726217527037,0.739151,58057.0,58056.0,0.002]
[1726217532433,0.378351,58057.0,58056.0,0.002]
[1726217532743,1.099951,58057.0,58056.0,0.002]
[1726217535043,1.25677551,58057.0,58056.0,0.002]
[1726217537342,0.086132,58047.0,58046.0,0.004]
[1726217537548,0.086134,58046.0,58045.0,0.086135]
[1726217537735,0.09504785,58046.0,58045.0,0.086135]
[1726217538141,0.09504807,58046.0,58045.0,0.086135]
[1726217538544,0.18118207,58046.0,58045.0,0.086135]
[1726217538846,0.086138,58043.0,58041.0,0.132441]
[1726217539053,0.12,58042.0,58041.0,0.132441]
[1726217539351,0.38675286,58042.0,58041.0,0.132441]
[1726217541342,0.38775286,58042.0,58041.0,0.142441]
[1726217542146,0.29370479,58042.0,58041.0,0.43620862]
[1726217542348,0.122,58042.0,58041.0,0.43620862]
[1726217542947,0.122,58042.0,58041.0,0.43618543]
[1726217543750,0.20814,58042.0,58041.0,0.35004443]
[1726217546137,0.20814,58042.0,58041.0,0.1962915]
[1726217547947,0.56894,58042.0,58041.0,0.14928691]
[1726217548253,0.74122,58042.0,58041.0,0.021]
[1726217548647,0.74122,58042.0,58035.0,0.09006474]
[1726217548648,0.4828,58042.0,58035.0,0.09006474]
[1726217548849,0.17231,58032.0,58031.0,0.004]
[1726217549150,0.086156,58031.0,58026.0,0.10329178]
[1726217549356,0.086165,58026.0,58022.0,0.004]
[1726217549557,0.12,58024.0,58023.0,0.12732733]
[1726217550160,0.086171,58021.0,58020.0,0.0463]
[1726217550451,0.086175,58018.0,58014.0,0.0463]
[1726217550657,0.12,58015.0,58014.0,0.0463]
[1726217550862,0.12,58015.0,58014.0,0.17382999]
[1726217551249,0.12,58015.0,58014.0,0.0463]
[1726217551655,0.12,58015.0,58008.0,0.10329178]
[1726217551863,0.12,58015.0,58005.0,0.004]
[1726217551864,0.12,58009.0,58005.0,0.15149178]
[1726217552060,0.086186,58011.0,58006.0,0.12751926]
[1726217552362,0.12,58007.0,58006.0,0.086193]
[1726217552660,0.12,58009.0,58006.0,0.086193]
[1726217553253,0.086195,58005.0,58000.0,0.006]
[1726217553455,0.086195,58005.0,58002.0,0.0482]
[1726217553654,0.12,58003.0,58002.0,0.0482]
[1726217554054,0.12,58003.0,58002.0,0.134399]
[1726217555370,0.121,58003.0,58002.0,0.134399]
[1726217555666,0.207198,58003.0,58002.0,0.134399]
[1726217555869,0.208198,58003.0,58002.0,0.134399]
[1726217559166,0.002,58003.0,58002.0,0.134399]
[1726217560667,0.086191,58008.0,58007.0,0.086192]
[1726217561766,0.087191,58008.0,58007.0,0.087192]
[1726217561966,0.088191,58008.0,58007.0,0.087192]
[1726217563271,0.088191,58008.0,58007.0,0.001]
[1726217564675,0.086192,58007.0,58006.0,0.086193]
[1726217564968,0.086192,58007.0,58001.0,0.0862]
[1726217564969,0.086199,58003.0,58001.0,0.0862]
[1726217565173,0.086192,58007.0,58001.0,0.0862]
[1726217565174,0.614399,58002.0,58001.0,0.0862]
[1726217565579,0.614399,58002.0,58000.0,0.006]
[1726217566281,0.086201,58001.0,58000.0,0.006]
[1726217567673,0.087201,58001.0,58000.0,0.008]
[1726217568181,0.287201,58001.0,58000.0,0.009]
[1726217569174,0.288201,58001.0,58000.0,0.009]
[1726217570876,0.30790034,58001.0,58000.0,0.009]
[1726217572086,0.22169934,58001.0,58000.0,0.009]
[1726217572489,0.30790034,58001.0,58000.0,0.009]
[1726217572789,0.002,58001.0,58000.0,0.095202]
[1726217573785,0.202,58001.0,58000.0,0.095202]
[1726217574588,0.288201,58001.0,58000.0,0.095202]
[1726217574980,0.088201,58001.0,58000.0,0.095202]
[1726217575181,0.202,58001.0,58000.0,0.095202]
[1726217576684,0.288201,58001.0,58000.0,0.095202]
[1726217577479,0.202,58001.0,58000.0,0.095202]
[1726217578281,0.202,58001.0,58000.0,0.22249577]
[1726217580284,0.202,58001.0,58000.0,0.32578755]
[1726217580687,0.202,58001.0,58000.0,0.32590206]
[1726217581878,0.288201,58001.0,58000.0,0.13640828]
[1726217582282,0.288201,58001.0,58000.0,0.009]
[1726217582484,0.288201,58001.0,58000.0,0.1364128]
[1726217582894,0.202,58001.0,58000.0,0.2226148]
[1726217584292,0.002,58001.0,58000.0,0.2226148]
[1726217584485,0.202,58001.0,58000.0,0.2226148]
[1726217584888,0.202,58001.0,58000.0,0.22266029]
[1726217587183,0.2,58001.0,58000.0,0.22266029]
[1726217589605,0.2,58001.0,58000.0,0.22248728]
[1726217590189,0.12,58001.0,58000.0,0.22248728]
[1726217591690,0.12,58001.0,58000.0,0.32577906]
[1726217593195,0.12,58001.0,58000.0,0.22248728]
[1726217594395,0.12,58001.0,58000.0,0.37464357]
[1726217595198,0.12,58001.0,58000.0,0.2226867]
[1726217595399,0.38074777,58002.0,58001.0,0.172402]
[1726217595699,0.38074777,58002.0,58001.0,0.2998867]
[1726217596995,0.38174777,58002.0,58001.0,0.3018867]
[1726217597194,0.38274777,58002.0,58001.0,0.40834456]
[1726217599202,0.50274777,58002.0,58001.0,0.40834456]
[1726217600300,0.50274777,58002.0,58001.0,0.3048867]
[1726217600698,0.50274777,58002.0,58001.0,0.2186857]
[1726217604706,0.30644777,58002.0,58001.0,0.61454556]
[1726217604910,0.008,58008.0,58007.0,0.086192]
[1726217605106,0.44699,58009.0,58008.0,0.08619]
[1726217605311,0.44699,58009.0,58008.0,0.2136747]
[1726217606212,0.44699,58009.0,58008.0,0.3336747]
[1726217606613,0.44799,58009.0,58008.0,0.3356747]
[1726217607014,0.3618,58009.0,58008.0,0.3356747]
[1726217608212,0.3618,58009.0,58008.0,0.2156747]
[1726217608410,0.38113067,58009.0,58008.0,0.2156747]
[1726217608608,0.46831967,58009.0,58008.0,0.2206747]
[1726217608913,0.46831967,58009.0,58008.0,0.30679784]
[1726217609303,0.46831967,58009.0,58008.0,0.09319]
[1726217609304,0.59673065,58009.0,58008.0,0.09319]
[1726217609500,0.65855157,58009.0,58008.0,0.09319]
[1726217610503,0.57236257,58009.0,58008.0,0.09319]
[1726217614614,0.65855157,58009.0,58008.0,0.09319]
[1726217615614,0.57236257,58009.0,58008.0,0.09319]
[1726217615810,0.57236257,58009.0,58008.0,0.007]
[1726217616015,0.65855157,58009.0,58008.0,0.007]
[1726217617307,0.46831967,58009.0,58008.0,0.007]
[1726217618108,0.46831967,58009.0,58008.0,0.09319]
[1726217624009,0.46831967,58009.0,58008.0,0.007]
[1726217624313,0.59673138,58009.0,58008.0,0.007]
[1726217624715,0.5438245,58009.0,58008.0,0.007]
[1726217625307,0.59673138,58009.0,58008.0,0.007]
[1726217628709,0.7681271,58009.0,58008.0,0.007]
[1726217629015,0.6819381,58009.0,58008.0,0.09319]
[1726217629420,0.51054238,58009.0,58008.0,0.09319]
[1726217630107,0.68195117,58009.0,58008.0,0.09319]
[1726217632223,0.38213067,58009.0,58008.0,0.22018744]
[1726217632523,0.46831967,58009.0,58008.0,0.22018744]
[1726217633326,0.38213067,58009.0,58008.0,0.22018744]
[1726217633521,0.38213067,58009.0,58008.0,0.220213]
[1726217635026,0.46831967,58009.0,58008.0,0.220213]
[1726217638327,0.46831967,58009.0,58008.0,0.32366615]
[1726217639226,0.51054134,58009.0,58008.0,0.09319]
[1726217639624,0.59673034,58009.0,58008.0,0.09319]
[1726217640226,0.49121067,58009.0,58008.0,0.17938]
[1726217640923,0.55302989,58009.0,58008.0,0.17938]
[1726217641227,0.63921889,58009.0,58008.0,0.09319]
[1726217642021,0.27841889,58009.0,58008.0,0.09319]
[1726217642221,0.21659967,58009.0,58008.0,0.11305299]
[1726217642624,0.21659304,58009.0,58008.0,0.11305299]
[1726217644928,0.33659304,58009.0,58008.0,0.09319]
[1726217645336,0.42278204,58009.0,58008.0,0.09319]
[1726217645530,0.33659304,58009.0,58008.0,0.09319]
[1726217646731,0.1304048,58009.0,58008.0,0.09319]
[1726217647232,0.2165938,58009.0,58008.0,0.09319]
[1726217647430,0.04506826,58009.0,58008.0,0.22005998]
[1726217649736,0.16506826,58009.0,58008.0,0.22005998]
[1726217650036,0.16506826,58009.0,58008.0,0.32346557]
[1726217651734,0.16506826,58009.0,58008.0,0.32314176]
[1726217654425,0.01944961,58012.0,58011.0,0.086186]
[1726217654426,0.13944961,58012.0,58011.0,0.086186]
[1726217654629,0.13944961,58012.0,58011.0,0.29891817]
[1726217654630,0.12,58012.0,58011.0,0.29891817]
[1726217655027,0.086184,58012.0,58011.0,0.21273217]
[1726217655633,0.086184,58012.0,58011.0,0.21473217]
[1726217656141,0.086184,58012.0,58011.0,0.21773217]
[1726217656433,0.206184,58012.0,58011.0,0.091186]
[1726217656639,0.206184,58012.0,58011.0,0.21630306]
[1726217661439,0.12,58012.0,58011.0,0.21630329]
[1726217662038,0.206184,58012.0,58011.0,0.13011729]
[1726217662239,0.206184,58012.0,58011.0,0.2162923]
[1726217662440,0.086186,58011.0,58004.0,0.3608]
[1726217662634,0.12,58005.0,58004.0,0.446996]
[1726217662940,0.24840452,58005.0,58004.0,0.446996]
[1726217663148,0.24840452,58005.0,58004.0,0.533192]
[1726217663353,0.12840452,58005.0,58004.0,0.54883133]
[1726217663938,0.0755006,58005.0,58004.0,0.54883133]
[1726217664140,0.0755006,58005.0,58004.0,0.55383133]
[1726217664343,0.0765006,58005.0,58004.0,0.19403133]
[1726217664548,0.12940452,58005.0,58004.0,0.19403133]
[1726217664850,0.13040452,58005.0,58004.0,0.19403133]
[1726217666448,0.13040452,58005.0,58004.0,0.55483133]
[1726217667153,0.13040452,58005.0,58004.0,0.19403133]
[1726217669346,0.002,58005.0,58004.0,0.31934713]
[1726217671244,0.002,58005.0,58004.0,0.31934752]
[1726217674751,0.002,58005.0,58004.0,0.46871451]
[1726217676048,0.002,58005.0,58004.0,0.46869553]
[1726217677343,0.05490663,58005.0,58004.0,0.19403133]
[1726217677540,0.1304111,58005.0,58004.0,0.19403133]
[1726217679556,0.1304111,58005.0,58004.0,0.28022733]
[1726217681353,0.3366061,58005.0,58004.0,0.006]
[1726217681653,0.50820902,58005.0,58004.0,0.006]
[1726217681863,0.55400902,58005.0,58004.0,0.006]
[1726217682247,0.55400902,58005.0,58004.0,0.092196]
[1726217682445,0.3824061,58005.0,58004.0,0.092196]
[1726217683258,0.2624061,58005.0,58004.0,0.092196]
[1726217683556,0.3824061,58005.0,58004.0,0.092196]
[1726217684352,0.253995,58005.0,58004.0,0.21765008]
[1726217685959,0.253995,58005.0,58004.0,0.32108744]
[1726217686759,0.253995,58005.0,58004.0,0.33663785]
[1726217687958,0.614795,58005.0,58004.0,0.33663785]
[1726217691057,0.253995,58005.0,58004.0,0.33663785]
[1726217691252,0.614795,58005.0,58004.0,0.33663785]
[1726217691658,0.253995,58005.0,58004.0,0.33663785]
[1726217692366,0.57167071,58005.0,58004.0,0.23320049]
[1726217692661,0.21087071,58005.0,58004.0,0.23320049]
[1726217692862,0.57167071,58005.0,58004.0,0.23320049]
[1726217693061,0.57167071,58005.0,58004.0,0.33661625]
[1726217694052,0.21087071,58005.0,58004.0,0.33661625]
[1726217694253,0.57167071,58005.0,58004.0,0.33661625]
[1726217694764,0.21087071,58005.0,58004.0,0.33661625]
[1726217694960,0.57167071,58005.0,58004.0,0.33661625]
[1726217695560,0.57167071,58005.0,58004.0,0.33662296]
[1726217695768,0.57167071,58005.0,58004.0,0.23294646]
[1726217695959,0.57167071,58005.0,58004.0,0.33636893]
[1726217696160,0.57167071,58005.0,58004.0,0.23294649]
[1726217697861,0.57167071,58005.0,58004.0,0.21739608]
[1726217698570,0.57167071,58005.0,58004.0,0.32082761]
[1726217699364,0.57167071,58005.0,58004.0,0.092196]
[1726217699365,0.70008645,58005.0,58004.0,0.092196]
[1726217700368,0.87168937,58005.0,58004.0,0.092196]
[1726217700975,0.70008645,58005.0,58004.0,0.092196]
[1726217702667,0.57167071,58005.0,58004.0,0.092196]
[1726217702863,0.70008645,58005.0,58004.0,0.092196]
[1726217705368,0.87168937,58005.0,58004.0,0.092196]
[1726217706175,0.87168937,58005.0,58004.0,0.178392]
[1726217706568,0.87168936,58005.0,58004.0,0.178392]
[1726217707478,0.74327363,58005.0,58004.0,0.30361523]
[1726217709381,0.74327363,58005.0,58004.0,0.30363483]
[1726217709979,0.74327363,58005.0,58004.0,0.21743883]
[1726217712779,0.78439792,58005.0,58004.0,0.21743883]
[1726217714481,0.91281449,58005.0,58004.0,0.092196]
[1726217715175,0.74121157,58005.0,58004.0,0.092196]
[1726217719876,0.38041157,58005.0,58004.0,0.092196]
[1726217720071,0.74121157,58005.0,58004.0,0.092196]
[1726217722586,0.612795,58005.0,58004.0,0.21747399]
[1726217723877,0.612795,58005.0,58004.0,0.092196]
[1726217724079,0.251995,58005.0,58004.0,0.21747603]
[1726217724283,0.492795,58005.0,58004.0,0.21747603]
[1726217724474,0.5266,58005.0,58002.0,0.06899288]
[1726217724675,0.5266,58005.0,57996.0,0.086208]
[1726217724676,0.3608,58003.0,57996.0,0.086208]
[1726217724869,0.4808,57997.0,57991.0,0.004]
[1726217725084,0.4808,57997.0,57987.0,0.12]
[1726217725085,0.447008,57997.0,57993.0,0.086212]
[1726217725276,0.086208,57996.0,57993.0,0.086212]
[1726217725474,0.086211,57994.0,57990.0,0.086216]
[1726217725687,0.12,57991.0,57990.0,0.086216]
[1726217727586,0.086218,57990.0,57986.0,0.06500978]
[1726217727788,0.12,57987.0,57986.0,0.15123278]
[1726217728483,0.206221,57987.0,57986.0,0.01540978]
[1726217728689,0.206221,57987.0,57984.0,0.411]
[1726217729081,0.086224,57986.0,57984.0,0.411]
[1726217729482,0.086224,57985.0,57984.0,0.3608]
[1726217730191,0.086224,57985.0,57984.0,0.6208]
[1726217730887,0.086224,57985.0,57984.0,0.26]
[1726217731081,0.086224,57985.0,57984.0,0.261]
[1726217731282,0.086224,57985.0,57984.0,0.001]
[1726217731783,0.087224,57985.0,57984.0,0.001]
[1726217732192,0.086227,57984.0,57982.0,0.086229]
[1726217732383,0.08623,57981.0,57980.0,0.49683]
[1726217732580,0.08623,57981.0,57980.0,0.51192104]
[1726217735088,0.08723,57981.0,57980.0,0.51292104]
[1726217736195,0.08823,57981.0,57980.0,0.51292104]
[1726217737387,0.08823,57981.0,57980.0,0.15212104]
[1726217737593,0.04509157,57981.0,57980.0,0.15212104]
[1726217738594,0.04509157,57981.0,57980.0,0.09452104]
[1726217742692,0.12,57984.0,57980.0,0.09452104]
[1726217742892,0.08623,57981.0,57980.0,0.09452104]
[1726217744995,0.20623,57981.0,57980.0,0.09452104]
[1726217745792,0.20723,57981.0,57980.0,0.09452104]
[1726217747393,0.20723,57981.0,57980.0,0.2160556]
[1726217748198,0.20723,57981.0,57980.0,0.09452104]
[1726217748398,0.121,57981.0,57980.0,0.30230874]
[1726217748901,0.001,57981.0,57980.0,0.30230874]
[1726217749695,0.001,57981.0,57980.0,0.38854074]
[1726217751702,0.001,57981.0,57980.0,0.30230874]
[1726217752495,0.001,57981.0,57980.0,0.18075304]
[1726217754398,0.001,57981.0,57980.0,0.23238873]
[1726217756507,0.001,57981.0,57980.0,0.31862073]
[1726217757303,0.001,57981.0,57980.0,0.26698504]
[1726217759003,0.008,57989.0,57988.0,0.17244]
[1726217759213,0.008,57996.0,57991.0,0.086215]
[1726217759398,0.01544265,57993.0,57991.0,0.17243]
[1726217759601,0.12,57996.0,57991.0,0.29421274]
[1726217759908,0.3608,57997.0,57991.0,0.41421274]
[1726217760106,0.12,57996.0,57991.0,0.41421274]
[1726217760910,0.3618,57992.0,57991.0,0.41621274]
[1726217761297,0.3618,57992.0,57991.0,0.39964287]
[1726217761503,0.3618,57992.0,57991.0,0.31342787]
[1726217761812,0.448014,57992.0,57991.0,0.20999774]
[1726217762713,0.449014,57992.0,57991.0,0.22686697]
[1726217763009,0.449014,57992.0,57991.0,0.22680335]
[1726217767607,0.57745466,57992.0,57991.0,0.10508423]
[1726217768314,0.57745466,57992.0,57991.0,0.090215]
[1726217771410,0.76621214,57992.0,57991.0,0.090215]
[1726217771809,0.91426548,57992.0,57991.0,0.004]
[1726217772007,0.08622,57988.0,57987.0,0.01487646]
[1726217772210,0.42088066,57988.0,57987.0,0.01487646]
[1726217772813,0.086221,57987.0,57986.0,0.086222]
[1726217773012,0.21466166,57987.0,57986.0,0.086222]
[1726217774610,0.086221,57987.0,57986.0,0.20807939]
[1726217775106,0.086221,57987.0,57986.0,0.12185739]
[1726217775107,0.173442,57987.0,57986.0,0.12185739]
[1726217776415,0.174442,57987.0,57986.0,0.12185739]
[1726217777313,0.18893391,57987.0,57986.0,0.12185739]
[1726217780808,0.18893391,57987.0,57985.0,0.08615288]
[1726217780809,0.172446,57986.0,57985.0,0.08615288]
[1726217781011,0.445946,57986.0,57985.0,0.12192367]
[1726217781622,0.532169,57986.0,57979.0,0.004]
[1726217781938,0.086242,57973.0,57972.0,0.00188]
[1726217782232,0.086247,57970.0,57963.0,0.08615866]
[1726217782419,0.4808,57964.0,57962.0,0.08615866]
[1726217782627,0.43764649,57964.0,57962.0,0.08615866]
[1726217782825,0.43764649,57964.0,57960.0,0.08615866]
[1726217783122,0.31764649,57964.0,57960.0,0.08615866]
[1726217783428,0.31764649,57964.0,57963.0,0.086257]
[1726217784438,0.31864649,57964.0,57963.0,0.086257]
[1726217784620,0.31864649,57964.0,57963.0,0.15501178]
[1726217785224,0.31864649,57964.0,57963.0,0.086257]
[1726217785436,0.002,57964.0,57963.0,0.086257]
[1726217788735,0.002,57964.0,57963.0,0.346257]
[1726217789330,0.002,57964.0,57963.0,0.432514]
[1726217789542,0.002,57964.0,57963.0,0.44715036]
[1726217789733,0.002,57964.0,57963.0,0.64715036]
[1726217791636,0.002,57964.0,57963.0,0.73340736]
[1726217795045,0.002,57964.0,57963.0,0.81966436]
[1726217795245,0.3608,57973.0,57972.0,0.172488]
[1726217795445,0.447912,57980.0,57979.0,0.086233]
[1726217795740,0.39425026,57980.0,57979.0,0.086233]
[1726217795947,0.39425026,57980.0,57979.0,0.172466]
[1726217795948,0.3608,57980.0,57979.0,0.172466]
[1726217796549,0.3608,57980.0,57979.0,0.432466]
[1726217797136,0.3678,57980.0,57979.0,0.432466]
[1726217798132,0.3688,57980.0,57979.0,0.432466]
[1726217798351,0.3698,57980.0,57979.0,0.433466]
[1726217798641,0.3698,57980.0,57979.0,0.44803348]
[1726217798944,0.3618,57980.0,57979.0,0.44803348]
[1726217799141,0.3628,57980.0,57979.0,0.44903348]
[1726217802846,0.001,57980.0,57979.0,0.44803348]
[1726217803036,0.002,57980.0,57979.0,0.44803348]
[1726217803432,0.001,57980.0,57979.0,0.44703348]
[1726217803639,0.002,57980.0,57979.0,0.44803348]
[1726217804661,0.07800911,57980.0,57979.0,0.44803348]
[1726217805038,0.07800902,57980.0,57979.0,0.44803348]
[1726217805841,0.13093998,57980.0,57979.0,0.44803348]
[1726217807639,0.12993998,57980.0,57979.0,0.44703348]
[1726217807849,0.13093998,57980.0,57979.0,0.44803348]
[1726217808748,0.13093998,57980.0,57979.0,0.56803348]
[1726217809051,0.30234684,57980.0,57979.0,0.56803348]
[1726217809753,0.30134684,57980.0,57979.0,0.56703348]
[1726217809952,0.30234684,57980.0,57979.0,0.56803348]
[1726217810339,0.30134684,57980.0,57979.0,0.56703348]
[1726217810543,0.30134684,57980.0,57979.0,0.56803348]
[1726217810850,0.30234684,57980.0,57979.0,0.56803348]
[1726217811348,0.13093998,57980.0,57979.0,0.56803348]
[1726217811847,0.12993998,57980.0,57979.0,0.56803348]
[1726217812153,0.13093998,57980.0,57979.0,0.56803348]
[1726217812950,0.002,57980.0,57979.0,0.56803348]